bitfinex/quotes_SOLUSD_20250123
["timestamp","ask_amount","ask_price","bid_price","bid_amount"]
[1737653253347,0.063,251.1,251.09,20.0]
[1737653253544,0.063,251.1,250.9,1.0]
[1737653253736,0.063,251.1,251.02,20.0]
[1737653254335,0.063,251.1,250.9,1.59326768]
[1737653254538,0.063,251.1,250.85,7.8239]
[1737653254745,0.063,251.1,250.86,23.776884]
[1737653254967,0.063,251.1,250.89,20.0]
[1737653255171,0.063,251.1,250.89,43.776884]
[1737653255968,4.0455,251.1,250.89,43.776884]
[1737653256156,0.063,251.1,250.89,43.776884]
[1737653256667,0.063,251.1,250.89,355.776884]
[1737653257065,0.063,251.1,250.88,20.0]
[1737653257566,0.063,251.1,250.89,23.776884]
[1737653258279,8.0149,251.09,250.89,23.776884]
[1737653258773,32.0249,251.09,250.85,3.20736842]
[1737653258970,1.0,251.08,250.85,3.20736842]
[1737653259148,32.0249,251.09,250.85,1.6076]
[1737653259472,32.0249,251.09,250.89,20.0]
[1737653259857,8.0149,251.09,250.89,20.0]
[1737653260061,8.0149,251.09,250.95,20.0]
[1737653260269,24.01,251.08,250.95,20.0]
[1737653262684,25.01,251.08,250.95,20.0]
[1737653263174,1.6222,251.03,250.84,0.03]
[1737653263682,2.0,251.0,250.84,0.03]
[1737653263868,6.0063,250.99,250.84,0.03]
[1737653264663,6.0063,250.99,250.84,23.806884]
[1737653264867,6.0063,250.99,250.91,20.0]
[1737653265071,6.0063,250.99,250.92,23.776884]
[1737653265460,6.0063,250.99,250.91,20.0]
[1737653265656,6.0063,250.99,250.84,0.03]
[1737653265965,6.0063,250.99,250.88,20.0]
[1737653266379,6.0063,250.99,250.85,23.776884]
[1737653266559,6.0063,250.99,250.84,0.03]
[1737653266761,30.0163,250.99,250.84,0.03]
[1737653267586,6.0063,250.99,250.84,0.03]
[1737653268077,6.0063,250.99,250.88,23.776884]
[1737653268261,6.0063,250.99,250.91,20.0]
[1737653268863,6.0063,250.99,250.84,0.03]
[1737653269582,6.0063,250.99,250.88,20.0]
[1737653270079,6.0063,250.99,250.92,20.0]
[1737653270760,6.0063,250.99,250.84,0.03]
[1737653271767,6.0063,250.99,250.86,20.0]
[1737653272185,6.0063,250.99,250.87,23.776884]
[1737653272760,6.0063,250.99,250.84,312.03]
[1737653272966,30.0163,250.99,250.84,0.03]
[1737653275570,6.0063,250.99,250.84,0.03]
[1737653275975,6.0063,250.99,250.88,20.0]
[1737653277767,6.0063,250.99,250.89,23.776884]
[1737653278563,1.6222,251.03,251.0,20.0]
[1737653279474,6.1561,251.05,251.01,23.776884]
[1737653279475,0.063,251.05,251.01,23.776884]
[1737653280276,0.063,251.05,250.87,20.0]
[1737653280595,0.063,251.05,250.95,20.0]
[1737653280895,0.063,251.05,250.99,20.0]
[1737653281101,0.063,251.05,250.84,8.173]
[1737653281402,0.063,251.05,250.88,23.776884]
[1737653281575,0.063,251.05,250.84,8.173]
[1737653281893,0.063,251.05,250.87,20.0]
[1737653282085,0.063,251.05,250.95,20.0]
[1737653282280,0.063,251.05,250.96,23.776884]
[1737653282494,0.063,251.05,250.95,20.0]
[1737653282673,0.063,251.05,250.84,9.80001682]
[1737653282674,0.063,251.05,250.87,20.0]
[1737653282874,0.063,251.05,250.88,23.776884]
[1737653283069,0.063,251.05,250.95,20.0]
[1737653283275,0.063,251.05,250.96,23.776884]
[1737653283479,0.063,251.05,250.99,20.0]
[1737653286797,0.063,251.05,251.03,20.0]
[1737653287781,0.063,251.1,251.03,20.0]
[1737653288187,6.4757,251.1,251.03,20.0]
[1737653289293,2.33369769,251.09,251.03,20.0]
[1737653289695,2.33369769,251.09,250.92,1.59163555]
[1737653289901,2.33369769,251.09,250.91,1.5917]
[1737653290284,2.33369769,251.09,250.99,20.0]
[1737653290480,2.33369769,251.08,250.99,20.0]
[1737653291196,2.33369769,251.08,250.96,20.0]
[1737653291590,2.33369769,251.07,250.97,20.0]
[1737653291784,2.33369769,251.07,250.94,23.776884]
[1737653292313,2.33369769,251.07,250.97,20.0]
[1737653292891,2.33369769,251.07,250.96,20.0]
[1737653292892,2.39669769,251.07,250.96,20.0]
[1737653293206,2.33369769,251.06,250.97,20.0]
[1737653293711,26.34369769,251.06,250.87,1.57357399]
[1737653294013,2.33369769,251.05,250.84,8.1584]
[1737653294216,26.34369769,251.05,250.84,8.1584]
[1737653294389,28.34369769,251.05,250.84,1.5409]
[1737653294703,1.0,251.04,250.84,1.5409]
[1737653294904,2.0,251.04,250.84,1.5409]
[1737653295310,2.0,251.04,250.88,20.0]
[1737653295608,4.33369769,251.04,250.88,20.0]
[1737653296402,24.01,250.99,250.84,0.03]
[1737653296591,1.0,250.98,250.84,0.03]
[1737653296791,12.44668155,250.97,250.84,0.03]
[1737653297308,13.44668155,250.97,250.84,0.03]
[1737653297703,12.44668155,250.97,250.84,20.03]
[1737653297896,6.5826,250.95,250.84,0.03]
[1737653298098,1.5443,250.94,250.84,0.03]
[1737653298428,2.5443,250.94,250.84,0.03]
[1737653299201,2.33369769,250.93,250.84,0.03]
[1737653299511,2.33369769,250.93,250.85,43.776884]
[1737653300286,8.1632,251.01,250.85,43.776884]
[1737653301419,6.5774,251.07,250.91,20.0]
[1737653301721,6.5774,251.07,250.99,20.0]
[1737653302303,6.5774,251.07,250.84,1.61160654]
[1737653302519,6.5774,251.07,250.92,20.0]
[1737653302916,19.02408155,251.07,250.92,20.0]
[1737653303218,6.5774,251.07,250.92,20.0]
[1737653303891,44.03408155,251.07,250.92,20.0]
[1737653304098,24.01,251.04,250.84,0.03]
[1737653304515,1.0,251.06,250.84,0.03]
[1737653304698,43.03408155,251.07,250.84,0.03]
[1737653305296,43.03408155,251.07,250.88,0.03]
[1737653305805,30.5874,251.07,250.88,0.03]
[1737653306117,30.5874,251.07,250.93,23.776884]
[1737653306305,30.5874,251.07,250.92,312.0]
[1737653306510,50.39245359,251.07,250.88,0.03]
[1737653306693,50.39245359,251.07,250.91,20.0]
[1737653307311,51.39245359,251.07,250.91,20.0]
[1737653307504,6.5774,251.07,250.95,20.0]
[1737653308111,6.5774,251.07,250.88,0.03]
[1737653309407,6.5774,251.07,250.94,20.0]
[1737653309623,6.5774,251.07,250.92,23.776884]
[1737653309803,30.5874,251.07,250.92,23.776884]
[1737653310116,31.5874,251.07,250.88,0.03]
[1737653310317,30.5874,251.07,250.88,0.03]
[1737653310698,30.5874,251.07,250.91,20.0]
[1737653311507,1.0,251.06,250.91,20.0]
[1737653311700,1.0,251.06,250.88,0.03]
[1737653312009,1.0,251.04,250.88,0.03]
[1737653312216,24.01,251.05,250.88,0.03]
[1737653313020,6.5774,251.07,250.92,20.0]
[1737653315904,50.39245359,251.07,250.92,20.0]
[1737653316111,50.39245359,251.07,250.88,0.03]
[1737653316631,50.39245359,251.07,250.92,20.0]
[1737653317521,50.39245359,251.07,250.88,0.03]
[1737653317721,51.39245359,251.07,250.88,0.03]
[1737653317935,50.39245359,251.07,250.88,0.03]
[1737653318312,50.39245359,251.07,250.91,20.0]
[1737653318519,30.5874,251.07,250.91,20.0]
[1737653318724,30.5874,251.07,250.92,23.776884]
[1737653318923,6.5774,251.07,250.93,20.0]
[1737653320329,24.01,251.06,250.93,20.0]
[1737653323223,24.01,251.06,250.94,23.776884]
[1737653323548,6.5774,251.07,250.98,23.776884]
[1737653324245,6.5774,251.07,250.88,1.60405432]
[1737653324414,6.5774,251.07,250.88,0.03]
[1737653324909,6.5774,251.07,250.95,20.0]
[1737653325112,30.5874,251.07,250.88,0.03]
[1737653325309,50.39245359,251.07,250.88,0.03]
[1737653325739,50.39245359,251.07,250.88,20.03]
[1737653325935,30.5874,251.07,250.88,0.03]
[1737653326317,30.5874,251.07,250.91,20.0]
[1737653326518,30.5874,251.07,250.92,23.776884]
[1737653327046,30.5874,251.07,250.95,20.0]
[1737653327917,6.5774,251.07,250.95,20.0]
[1737653329025,6.5774,251.07,250.96,23.776884]
[1737653329229,6.5774,251.07,250.99,20.0]
[1737653330244,6.5774,251.07,250.92,312.0]
[1737653330417,6.5774,251.07,250.93,23.776884]
[1737653330822,6.5774,251.07,250.96,20.0]
[1737653331429,6.5774,251.07,250.93,20.0]
[1737653333034,6.5774,251.07,251.01,20.0]
[1737653336025,6.5774,251.07,250.94,1.58046417]
[1737653336229,6.5774,251.07,250.88,0.03]
[1737653336945,6.5774,251.07,250.99,20.0]
[1737653337438,6.5774,251.07,251.03,20.0]
[1737653338247,0.063,251.07,251.04,23.776884]
[1737653338439,0.063,251.07,251.05,23.776884]
[1737653339829,0.063,251.07,251.05,20.0]
[1737653340640,0.063,251.07,250.97,1.5506]
[1737653341156,0.063,251.07,250.96,1.56484721]
[1737653341449,0.063,251.07,250.9,1.5321]
[1737653341450,0.063,251.07,250.91,20.0]
[1737653341651,0.063,251.07,250.92,23.776884]
[1737653341953,0.063,251.07,250.9,3.11055179]
[1737653342139,7.5902,251.06,250.9,3.11055179]
[1737653342344,31.6002,251.06,250.88,0.03]
[1737653342847,7.5902,251.06,250.89,23.776884]
[1737653343261,7.5902,251.06,250.96,20.0]
[1737653343435,7.5902,251.06,251.0,20.0]
[1737653343958,7.5902,251.06,250.88,1.64152068]
[1737653344269,7.5902,251.06,250.89,23.776884]
[1737653344753,7.5902,251.06,250.96,20.0]
[1737653345134,7.5902,251.06,250.88,1.64152068]
[1737653346162,7.5902,251.06,250.92,20.0]
[1737653346371,7.5902,251.06,250.93,43.776884]
[1737653350371,7.5902,251.06,251.0,20.0]
[1737653351068,6.0809,251.06,250.88,1.64152068]
[1737653351760,1.5179,251.05,250.88,1.64152068]
[1737653352146,1.5179,251.05,250.96,20.0]
[1737653353152,0.063,251.07,251.0,20.0]
[1737653353868,0.063,251.07,251.0,332.0]
[1737653354756,0.063,251.07,250.95,1.6306038]
[1737653354953,8.124,251.07,250.88,0.03]
[1737653355260,8.124,251.07,250.95,20.0]
[1737653357641,8.124,251.07,250.95,332.0]
[1737653358967,8.124,251.07,250.88,1.65592672]
[1737653359271,8.124,251.07,250.89,20.0]
[1737653359643,8.124,251.07,250.97,20.0]
[1737653360665,8.124,251.07,250.89,23.776884]
[1737653360961,8.124,251.07,250.92,43.776884]
[1737653361562,0.063,251.07,250.92,43.776884]
[1737653361952,0.063,251.07,250.96,23.776884]
[1737653362353,0.063,251.07,250.93,0.03]
[1737653365450,0.063,251.07,251.03,20.0]
[1737653366072,0.063,251.07,250.93,0.03]
[1737653366557,1.5552,251.06,250.93,0.03]
[1737653369069,1.5552,251.06,250.98,20.0]
[1737653369648,6.0008,251.05,250.98,20.0]
[1737653372179,6.0008,251.05,251.02,20.0]
[1737653373970,1.5552,251.06,251.02,20.0]
[1737653376279,1.5552,251.06,250.97,1.62778284]
[1737653376457,1.5552,251.06,250.98,20.0]
[1737653377466,1.5552,251.06,250.93,0.03]
[1737653379081,1.5552,251.06,250.97,20.0]
[1737653379286,1.5552,251.06,250.97,332.0]
[1737653380485,1.5552,251.06,250.93,0.03]
[1737653381087,6.5194,251.05,250.93,0.03]
[1737653385093,6.5194,251.05,250.95,20.0]
[1737653385288,6.5824,251.05,250.95,20.0]
[1737653387504,6.5824,251.05,250.95,332.0]
[1737653388387,6.5824,251.05,250.95,20.0]
[1737653389095,6.5824,251.05,250.93,0.03]
[1737653390898,6.5824,251.05,250.95,20.0]
[1737653391282,6.5824,251.05,250.93,0.03]
[1737653391987,6.5824,251.05,250.95,20.0]
[1737653394202,0.063,251.05,250.99,20.0]
[1737653394907,0.063,251.05,251.03,20.0]
[1737653396796,0.063,251.05,251.04,23.776884]
[1737653396988,6.1386,251.17,251.07,23.776884]
[1737653397193,6.1386,251.17,251.1,20.0]
[1737653397609,6.1386,251.17,250.96,4.11465537]
[1737653397805,6.1386,251.17,250.96,1.5008]
[1737653398015,6.1386,251.17,250.96,313.5008]
[1737653398313,30.0586,251.17,250.96,312.0]
[1737653398691,30.0586,251.17,250.99,20.0]
[1737653398894,30.0586,251.17,250.96,313.56408749]
[1737653399594,30.0586,251.17,250.99,20.0]
[1737653400938,6.1386,251.17,250.99,20.0]
[1737653401220,6.1386,251.17,251.0,43.776884]
[1737653403597,6.1386,251.17,251.1,20.0]
[1737653405428,6.1386,251.17,250.96,20.0]
[1737653406108,6.1386,251.17,250.94,20.0]
[1737653406329,6.1386,251.17,251.02,20.0]
[1737653406515,6.1386,251.17,251.06,20.0]
[1737653408633,6.2016,251.17,251.06,20.0]
[1737653409038,30.5465,251.14,250.94,6.20735516]
[1737653409329,30.5465,251.14,250.93,0.03]
[1737653409550,1.5357,251.13,250.93,0.03]
[1737653409909,23.92,251.11,250.94,20.0]
[1737653411031,6.3575,251.12,250.98,20.0]
[1737653411847,2.33377851,251.1,250.93,1.66721906]
[1737653412349,26.25377851,251.1,250.93,1.66721906]
[1737653412524,1.5131,251.09,250.93,1.66721906]
[1737653413429,1.5131,251.09,250.94,20.0]
[1737653414912,1.5131,251.09,250.93,1.66721906]
[1737653415117,30.49,251.08,250.93,1.66721906]
[1737653415838,6.57,251.08,250.93,1.66721906]
[1737653416221,6.57,251.08,250.97,20.0]
[1737653416836,6.57,251.08,250.93,1.66721906]
[1737653417045,6.57,251.08,250.97,20.0]
[1737653417926,6.57,251.08,250.97,332.0]
[1737653418142,6.57,251.08,250.97,20.0]
[1737653421057,6.57,251.08,250.97,332.0]
[1737653421525,1.5131,251.09,251.01,20.0]
[1737653423449,6.1779,251.14,251.01,20.0]
[1737653423830,6.0179,251.14,251.01,20.0]
[1737653424144,1.5945,251.15,251.09,20.0]
[1737653424347,0.063,251.17,251.13,20.0]
[1737653426648,0.063,251.17,251.03,1.0]
[1737653426862,0.063,251.17,251.08,23.776884]
[1737653427068,0.063,251.17,251.11,20.0]
[1737653427526,0.063,251.17,251.12,20.0]
[1737653429365,0.063,251.17,251.12,332.0]
[1737653429669,0.063,251.17,251.04,6.5828]
[1737653429846,0.063,251.17,251.02,23.776884]
[1737653430045,1.6375,251.17,251.02,1.58111841]
[1737653430253,1.6375,251.17,251.01,1.6284]
[1737653430559,1.6375,251.17,251.02,23.776884]
[1737653430869,1.6375,251.17,251.0,20.0]
[1737653431168,1.6375,251.17,251.04,20.0]
[1737653431335,1.6375,251.17,250.97,10.5497866]
[1737653431541,1.6375,251.17,251.04,20.0]
[1737653432567,1.6375,251.17,251.04,332.0]
[1737653433272,1.6375,251.17,250.97,10.5497866]
[1737653433441,1.6375,251.17,251.0,20.0]
[1737653434362,1.6375,251.17,251.04,20.0]
[1737653434877,1.6375,251.17,251.08,20.0]
[1737653435044,0.063,251.17,251.12,20.0]
[1737653435250,6.434,251.23,251.16,20.0]
[1737653436978,0.063,251.31,251.2,20.0]
[1737653436979,6.325,251.29,251.2,20.0]
[1737653437155,5.825,251.29,251.2,20.0]
[1737653437475,1.6017,251.36,251.28,20.0]
[1737653437978,1.6017,251.36,251.17,1.5116]
[1737653438184,1.6017,251.36,251.16,1.58557043]
[1737653438347,25.5217,251.36,251.12,1.5116]
[1737653438661,25.5217,251.36,251.2,20.0]
[1737653439039,25.5217,251.36,251.12,1.5116]
[1737653439463,26.24180052,251.35,251.16,20.0]
[1737653439964,38.60574975,251.35,251.16,20.0]
[1737653440268,23.92,251.33,251.16,20.0]
[1737653440844,6.3961,251.34,251.2,20.0]
[1737653440845,8.71790052,251.34,251.2,20.0]
[1737653441452,8.71790052,251.34,251.24,20.0]
[1737653442547,1.6017,251.36,251.28,20.0]
[1737653442747,6.2005,251.41,251.28,20.0]
[1737653442948,0.063,251.36,251.28,20.0]
[1737653443144,0.063,251.36,251.32,20.0]
[1737653444685,1.5588,251.42,251.32,20.0]
[1737653444866,3.67,251.45,251.24,1.5728]
[1737653444867,3.67,251.45,251.36,20.0]
[1737653445560,3.67,251.45,251.4,20.0]
[1737653446753,3.67,251.45,251.25,20.0]
[1737653447166,3.67,251.45,251.33,20.0]
[1737653447586,3.67,251.45,251.33,332.0]
[1737653448070,3.67,251.45,251.33,20.0]
[1737653448888,3.67,251.45,251.37,20.0]
[1737653449086,3.22179152,251.45,251.41,20.0]
[1737653449292,6.3204,251.53,251.45,20.0]
[1737653451087,6.2486,251.6,251.45,332.0]
[1737653454397,6.2486,251.6,251.45,20.0]
[1737653454901,6.2486,251.6,251.49,20.0]
[1737653455592,1.6183,251.62,251.49,20.0]
[1737653455772,0.03,251.6,251.49,20.0]
[1737653456375,23.95,251.6,251.37,1.5219]
[1737653456576,23.92,251.58,251.37,1.5219]
[1737653457090,23.92,251.58,251.42,20.0]
[1737653457265,23.92,251.58,251.39,23.776884]
[1737653457266,23.92,251.58,251.39,335.776884]
[1737653457466,23.92,251.58,251.39,312.0]
[1737653457694,23.92,251.58,251.37,3.10315229]
[1737653458194,23.92,251.58,251.38,23.776884]
[1737653458392,30.295,251.57,251.38,23.776884]
[1737653458591,30.295,251.57,251.37,3.10315229]
[1737653458592,23.92,251.55,251.37,1.58125229]
[1737653458886,36.28394923,251.53,251.36,0.063]
[1737653459085,1.5531,251.55,251.36,0.063]
[1737653459293,30.0,251.49,251.36,0.063]
[1737653460281,30.5806,251.48,251.36,0.063]
[1737653460479,1.6061,251.44,251.36,0.063]
[1737653460877,23.92,251.42,251.36,0.063]
[1737653461473,30.0,251.41,251.36,0.063]
[1737653462395,12.4806,251.48,251.36,0.063]
[1737653462580,6.6606,251.48,251.39,20.0]
[1737653462778,1.6591,251.5,251.39,20.0]
[1737653462978,6.4194,251.54,251.39,20.0]
[1737653463174,6.4194,251.54,251.43,20.0]
[1737653463878,6.4194,251.54,251.43,332.0]
[1737653464074,6.4194,251.54,251.47,20.0]
[1737653464286,1.6591,251.58,251.47,20.0]
[1737653464479,6.5257,251.6,251.47,20.0]
[1737653467802,6.5257,251.6,251.47,332.0]
[1737653468292,6.5257,251.6,251.47,20.0]
[1737653470199,6.5257,251.6,251.51,20.0]
[1737653472702,6.5257,251.6,251.43,1.56802147]
[1737653472906,6.5257,251.6,251.36,1.063]
[1737653473200,6.5257,251.6,251.5,20.0]
[1737653473702,6.5257,251.6,251.36,1.62220391]
[1737653473883,30.4457,251.6,251.36,1.62220391]
[1737653474083,43.64421502,251.58,251.36,1.62220391]
[1737653474283,23.92,251.55,251.36,1.62220391]
[1737653475199,27.8954,251.55,251.36,0.063]
[1737653475506,6.5348,251.53,251.36,0.063]
[1737653475700,23.92,251.52,251.36,0.063]
[1737653476014,6.5348,251.53,251.4,20.0]
[1737653476383,23.92,251.49,251.36,0.063]
[1737653476583,43.64421502,251.46,251.36,0.063]
[1737653476785,23.92,251.46,251.36,0.063]
[1737653476989,19.72421502,251.5,251.36,0.063]
[1737653477199,23.92,251.49,251.36,0.063]
[1737653478586,30.0,251.45,251.36,0.063]
[1737653480082,23.92,251.51,251.36,0.063]
[1737653480289,23.92,251.47,251.36,0.063]
[1737653480906,23.92,251.44,251.36,0.063]
[1737653481088,30.0,251.43,251.36,0.063]
[1737653482684,23.92,251.47,251.36,0.063]
[1737653483812,23.92,251.45,251.36,0.063]
[1737653484800,23.92,251.47,251.36,0.063]
[1737653485486,23.92,251.51,251.36,0.063]
[1737653486014,2.31707132,251.5,251.36,0.063]
[1737653486710,2.31707132,251.5,251.36,312.063]
[1737653487384,2.31707132,251.49,251.36,312.063]
[1737653487585,2.31707132,251.49,251.36,0.063]
[1737653487914,2.31707132,251.49,251.37,20.0]
[1737653488095,2.31707132,251.49,251.41,20.0]
[1737653488784,2.31707132,251.48,251.41,20.0]
[1737653489690,2.31707132,251.52,251.41,20.0]
[1737653490806,2.31707132,251.51,251.41,20.0]
[1737653492098,2.31707132,251.52,251.41,20.0]
[1737653493400,2.31707132,251.51,251.41,20.0]
[1737653494194,2.31707132,251.51,251.4,0.063]
[1737653494908,45.96128634,251.52,251.4,0.063]
[1737653495717,38.57221929,251.52,251.4,0.063]
[1737653496095,2.31707132,251.51,251.4,0.063]
[1737653497111,12.33514797,251.43,251.4,0.063]
[1737653497317,36.25514797,251.43,251.4,0.063]
[1737653497511,36.25514797,251.41,251.4,0.063]
[1737653497817,23.92,251.37,251.36,0.063]
[1737653497996,36.25514797,251.37,251.36,0.063]
[1737653499209,39.15383307,251.37,251.36,0.063]
[1737653499618,41.47090439,251.37,251.36,0.063]
[1737653499919,29.13575642,251.37,251.36,0.063]
[1737653500499,53.53179842,251.37,251.36,0.063]
[1737653501106,107.30868242,251.37,251.36,0.063]
[1737653501422,137.30868242,251.37,251.36,0.063]
[1737653502321,137.30868242,251.37,251.14,1.63660521]
[1737653502322,24.92,251.35,251.14,1.63660521]
[1737653502620,30.397284,251.36,251.14,1.63660521]
[1737653502621,19.76059367,251.28,251.14,1.63660521]
[1737653502824,19.76059367,251.24,251.14,1.63660521]
[1737653503124,23.92,251.26,251.14,1.63660521]
[1737653503125,19.76059367,251.22,251.14,1.63660521]
[1737653503926,33.0562851,251.23,251.14,1.63660521]
[1737653504102,2.8986851,251.23,251.14,1.63660521]
[1737653505112,19.76059367,251.24,251.14,1.63660521]
[1737653505722,23.776884,251.23,251.14,1.63660521]
[1737653506037,19.76059367,251.21,251.14,1.63660521]
[1737653506221,43.68059367,251.19,251.14,1.63660521]
[1737653506527,43.68059367,251.17,251.14,1.63660521]
[1737653507314,43.68059367,251.19,251.14,1.63660521]
[1737653507531,19.76059367,251.23,251.14,1.63660521]
[1737653507822,5.76,251.25,251.14,1.63660521]
[1737653508410,49.44059367,251.25,251.14,0.063]
[1737653508613,29.68,251.25,251.14,0.063]
[1737653509203,49.44059367,251.25,251.14,0.063]
[1737653510423,5.76,251.25,251.14,0.063]
[1737653511104,19.76059367,251.27,251.14,0.063]
[1737653512728,19.76059367,251.25,251.14,0.063]
[1737653514516,19.76059367,251.27,251.14,0.063]
[1737653515131,8.98992,251.27,251.14,0.063]
[1737653515846,43.68059367,251.21,251.14,0.063]
[1737653516913,19.76059367,251.23,251.14,0.063]
[1737653517113,23.92,251.24,251.14,0.063]
[1737653517726,19.76059367,251.25,251.14,0.063]
[1737653517919,19.76059367,251.27,251.14,0.063]
[1737653518121,43.68059367,251.27,251.14,0.063]
[1737653518306,43.68059367,251.23,251.14,0.063]
[1737653518512,19.76059367,251.18,251.14,0.063]
[1737653518928,19.76059367,251.16,251.14,0.063]
[1737653519125,43.68059367,251.16,251.14,0.063]
[1737653519326,83.870284,251.15,251.14,0.063]
[1737653519511,30.0934,251.15,251.14,0.063]
[1737653520958,83.870284,251.15,251.14,0.063]
[1737653521516,30.0934,251.15,251.14,0.063]
[1737653522019,23.92,251.15,251.14,0.063]
[1737653522219,19.76059367,251.18,251.14,0.063]
[1737653522537,23.92,251.17,251.14,0.063]
[1737653523314,23.92,251.15,251.14,0.063]
[1737653523513,47.696884,251.15,251.14,0.063]
[1737653523733,79.696884,251.15,251.14,0.063]
[1737653524031,83.678484,251.15,251.14,0.063]
[1737653524241,86.56436408,251.15,251.14,0.063]
[1737653524436,116.56436408,251.15,251.14,0.063]
[1737653525222,121.17851872,251.15,251.14,0.063]
[1737653525423,83.6527,251.11,251.1,0.063]
[1737653525624,23.92,251.03,251.0,0.03]
[1737653525826,117.45747767,251.01,251.0,0.03]
[1737653526014,121.44137767,251.01,251.0,0.03]
[1737653526215,122.44137767,251.01,251.0,0.03]
[1737653526616,121.44137767,251.01,251.0,0.03]
[1737653526817,43.68059367,251.01,251.0,0.03]
[1737653527235,67.45747767,251.01,251.0,0.03]
[1737653527437,68.45747767,251.01,251.0,0.03]
[1737653527616,69.45747767,251.01,251.0,0.03]
[1737653528340,55.92,250.94,250.93,0.03]
[1737653528545,98.45747767,250.94,250.93,0.03]
[1737653528719,43.68059367,250.94,250.93,0.03]
[1737653529323,67.45747767,250.94,250.93,0.03]
[1737653529527,98.45747767,250.94,250.93,0.03]
[1737653530136,67.45747767,250.94,250.93,0.03]
[1737653530635,31.525,250.97,250.93,0.03]
[1737653530844,30.0,250.94,250.93,0.03]
[1737653531140,53.776884,250.94,250.93,0.03]
[1737653531339,49.76059367,250.98,250.93,0.03]
[1737653531519,73.68059367,250.98,250.93,0.03]
[1737653532239,30.0,250.98,250.93,0.03]
[1737653532623,19.76059367,251.07,250.93,0.03]
[1737653532836,19.76059367,251.1,250.93,0.03]
[1737653533046,23.776884,251.09,250.93,0.03]
[1737653533220,30.0,251.08,250.93,0.03]
[1737653533627,43.68059367,251.1,250.93,0.03]
[1737653534642,23.92,251.1,250.93,0.03]
[1737653534823,23.776884,251.09,250.93,0.03]
[1737653535443,43.68059367,251.14,250.93,0.03]
[1737653535622,23.92,251.14,250.93,0.03]
[1737653535819,20.76059367,251.2,250.99,20.0]
[1737653536053,22.61384554,251.21,251.0,21.6237]
[1737653536246,2.87480992,251.19,251.0,21.6237]
[1737653536917,2.87480992,251.19,251.04,20.0]
[1737653537322,0.03,251.27,251.08,20.0]
[1737653537545,0.03,251.27,251.12,20.0]
[1737653537918,0.03,251.27,251.09,1.6279]
[1737653538222,0.03,251.27,251.09,25.404784]
[1737653538421,0.03,251.27,251.16,20.0]
[1737653539042,0.03,251.27,251.09,1.6279]
[1737653539247,0.03,251.27,251.09,3.24076466]
[1737653539543,0.03,251.27,251.1,20.0]
[1737653539960,0.03,251.27,251.1,43.776884]
[1737653540256,0.03,251.27,251.11,23.776884]